fUST/lending_fUST_20240613
["ID","MTS","AMOUNT","RATE_DAILY","PERIOD"]
[329278888,1718212242554,-500.0,0.00016712,2]
[329278889,1718212242565,-500.0,0.00016712,2]
[329278890,1718212242583,-500.0,0.00016712,2]
[329278891,1718212242594,-500.0,0.00016712,2]
[329278892,1718212242607,-687.11,0.00016712,2]
[329278893,1718212242619,-500.0,0.00016712,2]
[329278894,1718212242630,-500.0,0.00016712,2]
[329278896,1718212242642,-500.0,0.00016712,2]
[329278897,1718212242653,-500.0,0.00016712,2]
[329278898,1718212242663,-638.9216037,0.00016712,2]
[329278899,1718212242675,-500.0,0.00016712,2]
[329278900,1718212242686,-500.0,0.00016712,2]
[329278901,1718212242696,-500.0,0.00016712,2]
[329278902,1718212242707,-500.0,0.00016712,2]
[329278903,1718212242718,-500.0,0.00016712,2]
[329278904,1718212242728,-600.32,0.00016712,2]
[329278905,1718212242739,-500.0,0.00016712,2]
[329278907,1718212242750,-500.0,0.00016712,2]
[329278908,1718212242760,-500.0,0.00016712,2]
[329278910,1718212242774,-170.77038224,0.00016712,2]
[329278911,1718212242785,-500.0,0.00016712,2]
[329278912,1718212242797,-731.35,0.00016712,2]
[329278913,1718212242807,-500.0,0.00016712,2]
[329278914,1718212242818,-461.2145156,0.00016712,2]
[329278915,1718212242843,-500.0,0.00016712,2]
[329278916,1718212242855,-500.0,0.00016712,2]
[329278917,1718212242865,-500.0,0.00016712,2]
[329278918,1718212242878,-500.0,0.00016712,2]
[329278919,1718212242889,-500.0,0.00016712,2]
[329278921,1718212242912,-500.0,0.00016712,2]
[329278922,1718212242924,-500.0,0.00016712,2]
[329278924,1718212242936,-2610.67,0.00016712,2]
[329278925,1718212242947,-500.0,0.00016712,2]
[329278926,1718212242957,-500.0,0.00016712,2]
[329278927,1718212242969,-500.0,0.00016712,2]
[329278928,1718212242980,-500.0,0.00016712,2]
[329278929,1718212242991,-500.0,0.00016712,2]
[329278930,1718212243002,-500.0,0.00016712,2]
[329278931,1718212243013,-731.22,0.00016712,2]
[329278932,1718212243024,-723.63,0.00016712,2]
[329278933,1718212243035,-977.4,0.00016712,2]
[329278934,1718212243046,-896.07,0.00016712,2]
[329278935,1718212243057,-500.0,0.00016712,2]
[329278936,1718212243068,-500.0,0.00016712,2]
[329278937,1718212243079,-500.0,0.00016712,2]
[329278938,1718212243090,-500.0,0.00016712,2]
[329278939,1718212243103,-4700.03,0.00016712,2]
[329278940,1718212243115,-500.0,0.00016712,2]
[329278941,1718212243125,-500.0,0.00016712,2]
[329278942,1718212243134,-500.0,0.00016712,2]
[329278943,1718212243145,-500.0,0.00016712,2]
[329278944,1718212243156,-500.0,0.00016712,2]
[329278945,1718212243167,-500.0,0.00016712,2]
[329278946,1718212243178,-9653.09,0.00016712,2]
[329278947,1718212243188,-154.27709157,0.00016712,2]
[329278948,1718212243199,-1847.77,0.00016712,2]
[329278949,1718212243211,-3440.92,0.00016712,2]
[329278950,1718212243221,-500.0,0.00016712,2]
[329278951,1718212243232,-7168.14,0.00016712,2]
[329278952,1718212243242,-500.0,0.00016712,2]
[329278953,1718212243254,-759.71,0.00016712,2]
[329278954,1718212243265,-680.76,0.00016712,2]
[329278955,1718212243276,-500.0,0.00016712,2]
[329278956,1718212243286,-442.0759564,0.00016712,2]
[329278957,1718212243297,-981.02,0.00016712,2]
[329278958,1718212243309,-500.0,0.00016712,2]
[329278959,1718212243319,-500.0,0.00016712,2]
[329278960,1718212243331,-1818.3,0.00016712,2]
[329278961,1718212243342,-581.06,0.00016712,2]
[329278962,1718212243353,-500.0,0.00016712,2]
[329278963,1718212243364,-500.0,0.00016712,2]
[329278964,1718212243374,-1320.86,0.00016712,2]
[329278965,1718212243385,-500.0,0.00016712,2]
[329278966,1718212243400,-500.0,0.00016712,2]
[329278967,1718212243414,-500.0,0.00016712,2]
[329278968,1718212243425,-500.0,0.00016712,2]
[329278969,1718212243436,-500.0,0.00016712,2]
[329278970,1718212243447,-623.14,0.00016712,2]
[329278971,1718212243459,-500.0,0.00016712,2]
[329278972,1718212243470,-2802.17,0.00016712,2]
[329278973,1718212243481,-645.61,0.00016712,2]
[329278974,1718212243492,-500.0,0.00016712,2]
[329278975,1718212243503,-1389.2,0.00016712,2]
[329278976,1718212243515,-500.0,0.00016712,2]
[329278977,1718212243526,-500.0,0.00016712,2]
[329278978,1718212243538,-1149.23161173,0.00016836,2]
[329278979,1718212243549,-500.0,0.00016985,2]
[329278980,1718212243561,-500.0,0.00016985,2]
[329278981,1718212243572,-169.18,0.00016986,2]
[329278982,1718212243585,-503.42106394,0.00016986,2]
[329278983,1718212243597,-500.0,0.00016986,4]
[329278984,1718212243608,-250.0,0.00016986,2]
[329278985,1718212243620,-500.0,0.00016986,2]
[329278986,1718212243632,-500.0,0.00016986,2]
[329278987,1718212243644,-500.0,0.00016986,2]
[329278988,1718212243657,-500.0,0.00016986,2]
[329278989,1718212243667,-500.0,0.00016986,2]
[329278990,1718212243680,-500.0,0.00016986,2]
[329278991,1718212243690,-500.0,0.00016986,2]
[329278992,1718212243701,-500.0,0.00016986,2]
[329278993,1718212243712,-500.0,0.00016986,2]
[329278994,1718212243724,-500.0,0.00016986,2]
[329278995,1718212243735,-687.11,0.00016986,2]
[329278996,1718212243747,-500.0,0.00016986,2]
[329278997,1718212243759,-500.0,0.00016986,2]
[329278998,1718212243770,-500.0,0.00016986,2]
[329278999,1718212243781,-500.0,0.00016986,2]
[329279000,1718212243793,-500.0,0.00016986,2]
[329279001,1718212243804,-500.0,0.00016986,2]
[329279002,1718212243817,-600.32,0.00016986,2]
[329279003,1718212243829,-157.25997363,0.00016986,2]
[329279004,1718212243843,-500.0,0.00016986,2]
[329279005,1718212243853,-500.0,0.00016986,2]
[329279006,1718212243864,-731.35,0.00016986,2]
[329279007,1718212243874,-500.0,0.00016986,2]
[329279008,1718212243885,-500.0,0.00016986,2]
[329279009,1718212243899,-500.0,0.00016986,2]
[329279010,1718212243922,-2610.67,0.00016986,2]
[329279011,1718212243934,-500.0,0.00016986,2]
[329279012,1718212243945,-504.24434647,0.00016986,2]
[329279013,1718212243956,-630.72,0.00016986,2]
[329279014,1718212243967,-500.0,0.00016986,2]
[329279015,1718212243978,-731.22,0.00016986,2]
[329279016,1718212243990,-723.63,0.00016986,2]
[329279017,1718212244001,-977.4,0.00016986,2]
[329279018,1718212244012,-896.07,0.00016986,2]
[329279019,1718212244024,-500.0,0.00016986,2]
[329279020,1718212244035,-500.0,0.00016986,2]
[329279021,1718212244049,-4700.03,0.00016986,2]
[329279022,1718212244061,-500.0,0.00016986,2]
[329279023,1718212244072,-542.5503264,0.00016986,2]
[329279024,1718212244083,-500.0,0.00016986,2]
[329279025,1718212244096,-500.0,0.00016986,2]
[329279026,1718212244109,-500.0,0.00016986,2]
[329279027,1718212244121,-500.0,0.00016986,2]
[329279028,1718212244132,-9653.09,0.00016986,2]
[329279029,1718212244144,-1847.77,0.00016986,2]
[329279030,1718212244155,-3440.92,0.00016986,2]
[329279031,1718212244166,-500.0,0.00016986,2]
[329279032,1718212244177,-7168.14,0.00016986,2]
[329279033,1718212244189,-500.0,0.00016986,2]
[329279034,1718212244199,-759.71,0.00016986,2]
[329279035,1718212244209,-680.76,0.00016986,2]
[329279036,1718212244220,-500.0,0.00016986,2]
[329279037,1718212244231,-981.02,0.00016986,2]
[329279038,1718212244242,-500.0,0.00016986,2]
[329279039,1718212244254,-500.0,0.00016986,2]
[329279040,1718212244265,-1818.3,0.00016986,2]
[329279041,1718212244276,-581.06,0.00016986,2]
[329279042,1718212244287,-500.0,0.00016986,2]
[329279043,1718212244298,-500.0,0.00016986,2]
[329279044,1718212244309,-1320.86,0.00016986,2]
[329279045,1718212244320,-598.38989292,0.00016986,2]
[329279046,1718212244331,-500.0,0.00016986,2]
[329279047,1718212244341,-623.14,0.00016986,2]
[329279048,1718212244352,-2802.17,0.00016986,2]
[329279049,1718212244364,-500.0,0.00016986,2]
[329279050,1718212244374,-1389.2,0.00016986,2]
[329279051,1718212244384,-500.0,0.00017259,2]
[329279052,1718212244395,-500.0,0.0001726,4]
[329279053,1718212244406,-250.0,0.0001726,2]
[329279054,1718212244417,-500.0,0.0001726,2]
[329279055,1718212244427,-500.0,0.0001726,2]
[329279056,1718212244438,-500.0,0.0001726,2]
[329279057,1718212244449,-500.0,0.0001726,2]
[329279058,1718212244460,-500.0,0.0001726,2]
[329279059,1718212244471,-500.0,0.0001726,2]
[329279060,1718212244483,-500.0,0.0001726,2]
[329279061,1718212244498,-687.11,0.0001726,2]
[329279062,1718212244510,-500.0,0.0001726,2]
[329279063,1718212244524,-500.0,0.0001726,2]
[329279064,1718212244537,-500.0,0.0001726,2]
[329279065,1718212244548,-500.0,0.0001726,2]
[329279066,1718212244564,-500.0,0.0001726,2]
[329279067,1718212244575,-500.0,0.0001726,2]
[329279068,1718212244588,-600.32,0.0001726,2]
[329279069,1718212244601,-500.0,0.0001726,2]
[329279070,1718212244613,-500.0,0.0001726,2]
[329279071,1718212244624,-731.35,0.0001726,2]
[329279072,1718212244636,-500.0,0.0001726,2]
[329279073,1718212244648,-500.0,0.0001726,2]
[329279074,1718212244660,-2610.67,0.0001726,2]
[329279075,1718212244671,-500.0,0.0001726,2]
[329279076,1718212244685,-500.0,0.0001726,2]
[329279077,1718212244695,-731.22,0.0001726,2]
[329279078,1718212244707,-723.63,0.0001726,2]
[329279079,1718212244717,-977.4,0.0001726,2]
[329279080,1718212244728,-896.07,0.0001726,2]
[329279081,1718212244739,-500.0,0.0001726,2]
[329279082,1718212244749,-500.0,0.0001726,2]
[329279083,1718212244763,-4700.03,0.0001726,2]
[329279084,1718212244774,-500.0,0.0001726,2]
[329279085,1718212244785,-500.0,0.0001726,2]
[329279086,1718212244796,-500.0,0.0001726,2]
[329279087,1718212244807,-500.0,0.0001726,2]
[329279088,1718212244819,-9653.09,0.0001726,2]
[329279089,1718212244831,-1847.77,0.0001726,2]
[329279090,1718212244844,-3440.92,0.0001726,2]
[329279091,1718212244854,-500.0,0.0001726,2]
[329279092,1718212244865,-7168.14,0.0001726,2]
[329279093,1718212244877,-500.0,0.0001726,2]
[329279094,1718212244888,-759.71,0.0001726,2]
[329279095,1718212244913,-680.76,0.0001726,2]
[329279096,1718212244923,-500.0,0.0001726,2]
[329279097,1718212244936,-981.02,0.0001726,2]
[329279098,1718212245075,-500.0,0.0001726,2]
[329279099,1718212245088,-282.32,0.0001726,2]
[329279100,1718212245100,-1818.3,0.0001726,2]
[329279101,1718212245111,-581.06,0.0001726,2]
[329279102,1718212245122,-500.0,0.0001726,2]
[329279103,1718212245133,-500.0,0.0001726,2]
[329279104,1718212245144,-1320.86,0.0001726,2]
[329279105,1718212245155,-500.0,0.0001726,2]
[329279106,1718212245166,-623.14,0.0001726,2]
[329279107,1718212245176,-2802.17,0.0001726,2]
[329279108,1718212245187,-500.0,0.0001726,2]
[329279109,1718212245199,-1389.2,0.0001726,2]
[329279110,1718212245211,-1149.23161173,0.00017334,2]
[329279111,1718212245222,-500.0,0.0001753,2]
[329279112,1718212245234,-500.0,0.0001753,2]
[329279113,1718212245245,-22612.55977226,0.00017531,2]
[329279114,1718212245400,-3932.33479456,0.00017531,2]
[329279115,1718212245414,-54178.73992514,0.00017531,2]
[329279116,1718212245424,-464.64,0.00017533,2]
[329279117,1718212245436,-500.0,0.00017534,4]
[329279118,1718212245446,-500.0,0.00017534,2]
[329279119,1718212245457,-500.0,0.00017534,2]
[329279120,1718212245468,-458.78,0.00017534,2]
[329279121,1718212245478,-500.0,0.00017534,2]
[329279122,1718212245490,-500.0,0.00017534,2]
[329279123,1718212245501,-500.0,0.00017534,2]
[329279124,1718212245512,-500.0,0.00017534,2]
[329279125,1718212245522,-687.11,0.00017534,2]
[329279126,1718212245533,-500.0,0.00017534,2]
[329279127,1718212245544,-500.0,0.00017534,2]
[329279128,1718212245554,-500.0,0.00017534,2]
[329279129,1718212245564,-500.0,0.00017534,2]
[329279130,1718212245575,-500.0,0.00017534,2]
[329279131,1718212245585,-500.0,0.00017534,2]
[329279132,1718212245596,-600.32,0.00017534,2]
[329279133,1718212245607,-500.0,0.00017534,2]
[329279134,1718212245617,-500.0,0.00017534,2]
[329279135,1718212245629,-731.35,0.00017534,2]
[329279136,1718212245640,-500.0,0.00017534,2]
[329279137,1718212245650,-2610.67,0.00017534,2]
[329279138,1718212245662,-500.0,0.00017534,2]
[329279139,1718212245673,-500.0,0.00017534,2]
[329279140,1718212245684,-731.22,0.00017534,2]
[329279141,1718212245695,-723.63,0.00017534,2]
[329279142,1718212245706,-977.4,0.00017534,2]
[329279143,1718212245717,-896.07,0.00017534,2]
[329279144,1718212245728,-500.0,0.00017534,2]
[329279145,1718212245740,-500.0,0.00017534,2]
[329279146,1718212245750,-4700.03,0.00017534,2]
[329279147,1718212245762,-500.0,0.00017534,2]
[329279148,1718212245774,-500.0,0.00017534,2]
[329279149,1718212245785,-500.0,0.00017534,2]
[329279150,1718212245797,-9653.09,0.00017534,2]
[329279151,1718212245807,-1847.77,0.00017534,2]
[329279152,1718212245820,-3440.92,0.00017534,2]
[329279153,1718212245832,-500.0,0.00017534,2]
[329279154,1718212245847,-7168.14,0.00017534,2]
[329279155,1718212245860,-514.23501858,0.00017534,2]
[329279156,1718212245872,-759.71,0.00017534,2]
[329279157,1718212245884,-680.76,0.00017534,2]
[329279158,1718212245909,-278.30430788,0.00017534,2]
[329279159,1718212245924,-981.02,0.00017534,2]
[329279160,1718212245936,-500.0,0.00017534,2]
[329279161,1718212245948,-1818.3,0.00017534,2]
[329279163,1718212245958,-581.06,0.00017534,2]
[329279164,1718212245969,-500.0,0.00017534,2]
[329279165,1718212245981,-500.0,0.00017534,2]
[329279166,1718212245992,-1320.86,0.00017534,2]
[329279167,1718212246003,-500.0,0.00017534,2]
[329279168,1718212246014,-623.14,0.00017534,2]
[329279169,1718212246027,-2667.91804396,0.00017534,2]
[329279170,1718212246042,-134.25195604,0.00017534,2]
[329279171,1718212246055,-500.0,0.00017534,2]
[329279172,1718212246066,-1389.2,0.00017534,2]
[329279173,1718212246077,-631.8,0.00017742,2]
[329279175,1718212246089,-500.0,0.00017808,4]
[329279176,1718212246099,-500.0,0.00017808,2]
[329279178,1718212246113,-500.0,0.00017808,2]
[329279180,1718212246124,-500.0,0.00017808,2]
[329279182,1718212246135,-500.0,0.00017808,2]
[329279184,1718212246146,-500.0,0.00017808,2]
[329279186,1718212246159,-500.0,0.00017808,2]
[329279188,1718212246170,-687.11,0.00017808,2]
[329279190,1718212246181,-500.0,0.00017808,2]
[329279192,1718212246193,-500.0,0.00017808,2]
[329279194,1718212246206,-500.0,0.00017808,2]
[329279196,1718212246218,-500.0,0.00017808,2]
[329279198,1718212246230,-500.0,0.00017808,2]
[329279200,1718212246242,-600.32,0.00017808,2]
[329279202,1718212246256,-500.0,0.00017808,2]
[329279204,1718212246269,-500.0,0.00017808,2]
[329279206,1718212246281,-731.35,0.00017808,2]
[329279208,1718212246291,-500.0,0.00017808,2]
[329279210,1718212246304,-2610.67,0.00017808,2]
[329279212,1718212246317,-500.0,0.00017808,2]
[329279214,1718212246331,-500.0,0.00017808,2]
[329279216,1718212246344,-731.22,0.00017808,2]
[329279218,1718212246356,-723.63,0.00017808,2]
[329279220,1718212246370,-977.4,0.00017808,2]
[329279222,1718212246381,-896.07,0.00017808,2]
[329279224,1718212246394,-500.0,0.00017808,2]
[329279226,1718212246406,-500.0,0.00017808,2]
[329279228,1718212246418,-4700.03,0.00017808,2]
[329279229,1718212246428,-500.0,0.00017808,2]
[329279231,1718212246440,-500.0,0.00017808,2]
[329279233,1718212246451,-9653.09,0.00017808,2]
[329279235,1718212246463,-942.12752227,0.00017808,2]
[329279782,1718212630649,213.34066838,0.00016431,30]
[329279804,1718212944649,1036.0,0.00023,30]
[329279822,1718213139925,386.41867679,0.0002,30]
[329279921,1718213434716,-9592.69620331,0.00015326,2]
[329279922,1718213434733,-1995.59270983,0.00015327,2]
[329279924,1718213434753,-300.0,0.00015327,2]
[329279926,1718213434772,-235.49923282,0.00015428,2]
[329279928,1718213434785,-2037.00298008,0.00015428,2]
[329279930,1718213434796,-207.17413057,0.00015429,2]
[329279931,1718213434813,-36428.08866585,0.0001543,2]
[329279933,1718213434828,-156.17906786,0.00015432,2]
[329279935,1718213434843,-273.78628196,0.00015433,2]
[329279937,1718213434860,-2201.56040677,0.00015433,2]
[329279939,1718213434874,-19220.3150964,0.00015434,2]
[329279941,1718213434886,-1399.56365382,0.00016338,2]
[329279943,1718213434907,-155.01550155,0.00016431,2]
[329279945,1718213434926,-228.15123184,0.00016431,2]
[329279947,1718213434942,-164.63552504,0.00016432,2]
[329279949,1718213434955,-10690.55475181,0.00016433,2]
[329279951,1718213434979,-700.89658288,0.00016433,2]
[329280289,1718213441026,-800.0,0.00016433,2]
[329280290,1718213441052,-6589.05974832,0.00016433,2]
[329280291,1718213441065,-1499.4423005,0.00016436,2]
[329280292,1718213441079,-158.83928738,0.00016436,2]
[329280293,1718213441093,-500.0,0.00016438,2]
[329280294,1718213441106,-500.0,0.00016438,2]
[329280295,1718213441129,-500.0,0.00016438,2]
[329280296,1718213441141,-500.0,0.00016438,2]
[329280297,1718213441154,-500.0,0.00016438,2]
[329280298,1718213441168,-500.0,0.00016438,2]
[329280299,1718213441234,-500.0,0.00016438,2]
[329280300,1718213441277,-500.0,0.00016438,2]
[329280301,1718213441301,-504.24434647,0.00016438,2]
[329280302,1718213441322,-630.72,0.00016438,2]
[329280303,1718213441359,-500.0,0.00016438,2]
[329280304,1718213441397,-500.0,0.00016438,2]
[329280305,1718213441416,-500.0,0.00016438,2]
[329280306,1718213441434,-788.19,0.00016438,2]
[329280307,1718213441464,-500.0,0.00016438,2]
[329280308,1718213441476,-500.0,0.00016438,2]
[329280309,1718213441497,-500.0,0.00016438,2]
[329280310,1718213441517,-500.0,0.00016438,2]
[329280311,1718213441539,-500.0,0.00016438,2]
[329280312,1718213441558,-500.0,0.00016438,2]
[329280313,1718213441593,-698.9,0.00016438,2]
[329280314,1718213441623,-500.0,0.00016438,2]
[329280315,1718213441652,-785.12,0.00016438,2]
[329280316,1718213441680,-500.0,0.00016438,2]
[329280317,1718213441696,-500.0,0.00016438,2]
[329280318,1718213441711,-500.0,0.00016438,2]
[329280319,1718213441727,-500.0,0.00016438,2]
[329280320,1718213441744,-500.0,0.00016438,2]
[329280321,1718213441763,-500.0,0.00016438,2]
[329280322,1718213441781,-500.0,0.00016438,2]
[329280323,1718213441803,-500.0,0.00016438,2]
[329280324,1718213441815,-500.0,0.00016438,2]
[329280325,1718213441827,-500.0,0.00016438,2]
[329280326,1718213441839,-500.0,0.00016438,2]
[329280327,1718213441851,-500.0,0.00016438,4]
[329280328,1718213441865,-500.0,0.00016438,2]
[329280329,1718213441881,-500.0,0.00016438,2]
[329280330,1718213441902,-500.0,0.00016438,2]
[329280331,1718213441915,-843.74,0.00016438,2]
[329280332,1718213441931,-525.84493326,0.00016438,2]
[329280333,1718213441946,-500.0,0.00016438,2]
[329280334,1718213441967,-537.34518742,0.00016438,2]
[329280335,1718213441982,-6106.68,0.00016438,2]
[329280336,1718213441999,-500.0,0.00016438,2]
[329280337,1718213442052,-1141.32,0.00016438,2]
[329280338,1718213442068,-500.0,0.00016438,2]
[329280339,1718213442090,-612.88,0.00016438,2]
[329280340,1718213442112,-250.0,0.00016438,2]
[329280341,1718213442126,-500.0,0.00016438,2]
[329280342,1718213442153,-500.0,0.00016438,2]
[329280343,1718213442173,-500.0,0.00016438,2]
[329280344,1718213442205,-1594.96,0.00016438,2]
[329280345,1718213442219,-500.0,0.00016438,2]
[329280346,1718213442237,-500.0,0.00016438,2]
[329280347,1718213442255,-500.0,0.00016438,2]
[329280348,1718213442271,-500.0,0.00016438,2]
[329280349,1718213442299,-500.0,0.00016438,2]
[329280350,1718213442317,-816.27,0.00016438,2]
[329280351,1718213442347,-500.0,0.00016438,2]
[329280352,1718213442365,-500.0,0.00016438,2]
[329280353,1718213442377,-1013.29,0.00016438,2]
[329280354,1718213442388,-500.0,0.00016438,2]
[329280355,1718213442404,-500.0,0.00016438,2]
[329280356,1718213442415,-500.0,0.00016438,2]
[329280357,1718213442455,-500.0,0.00016438,2]
[329280358,1718213442475,-500.0,0.00016438,2]
[329280359,1718213442499,-500.0,0.00016438,2]
[329280360,1718213442521,-500.0,0.00016438,2]
[329280361,1718213442533,-500.0,0.00016438,2]
[329280362,1718213442549,-500.0,0.00016438,2]
[329280363,1718213442576,-500.0,0.00016438,2]
[329280364,1718213442592,-5276.1,0.00016438,2]
[329280365,1718213442618,-10317.11,0.00016438,2]
[329280366,1718213442648,-154.27709157,0.00016438,2]
[329280367,1718213442669,-518.77,0.00016438,2]
[329280368,1718213442699,-2023.36,0.00016438,2]
[329280369,1718213442721,-500.0,0.00016438,2]
[329280370,1718213442734,-500.0,0.00016438,2]
[329280371,1718213442748,-500.0,0.00016438,2]
[329280372,1718213442764,-3909.97,0.00016438,2]
[329280373,1718213442788,-885.64,0.00016438,2]
[329280374,1718213442805,-543.96,0.00016438,2]
[329280376,1718213442856,-500.0,0.00016438,2]
[329280378,1718213442874,-500.0,0.00016438,2]
[329280379,1718213442901,-661.55,0.00016438,2]
[329280380,1718213442914,-540.86,0.00016438,2]
[329280381,1718213442931,-500.0,0.00016438,2]
[329280384,1718213442950,-500.0,0.00016438,2]
[329280385,1718213443121,-1169.56,0.00016438,2]
[329280386,1718213443157,-502.93,0.00016438,2]
[329280387,1718213443174,-8110.14,0.00016438,2]
[329280388,1718213443186,-2126.41,0.00016438,2]
[329280389,1718213443196,-500.0,0.00016438,2]
[329280390,1718213443214,-500.0,0.00016438,2]
[329280391,1718213443254,-281.0126104,0.00016438,2]
[329280392,1718213443277,-1587.25,0.00016438,2]
[329280393,1718213443295,-829.0,0.00016438,2]
[329280394,1718213443306,-500.0,0.00016438,2]
[329280395,1718213443326,-582.53,0.00016438,2]
[329280396,1718213443339,-500.0,0.00016438,2]
[329280397,1718213443354,-500.0,0.00016438,2]
[329280398,1718213443368,-500.0,0.00016438,2]
[329280399,1718213443386,-500.0,0.00016438,2]
[329280400,1718213443403,-500.0,0.00016438,2]
[329280401,1718213443432,-500.0,0.00016438,2]
[329280402,1718213443447,-500.0,0.00016438,2]
[329280403,1718213443480,-500.0,0.00016438,2]
[329280404,1718213443492,-500.0,0.00016438,2]
[329280405,1718213443504,-3349.27,0.00016438,2]
[329280406,1718213443529,-500.0,0.00016438,2]
[329280407,1718213443543,-500.0,0.00016438,2]
[329280408,1718213443555,-566.91,0.00016438,2]
[329280409,1718213443571,-3051.67,0.00016438,2]
[329280410,1718213443583,-2000.0,0.00016612,2]
[329280411,1718213443597,-39833.90593996,0.00016711,15]
[329280412,1718213443618,-500.0,0.00016711,2]
[329280413,1718213443649,-500.0,0.00016711,2]
[329280414,1718213443676,-500.0,0.00016711,2]
[329280415,1718213443699,-500.0,0.00016711,2]
[329280416,1718213443712,-500.0,0.00016711,2]
[329280417,1718213443742,-500.0,0.00016712,2]
[329280418,1718213443765,-500.0,0.00016712,2]
[329280419,1718213443786,-516.22,0.00016712,2]
[329280420,1718213443800,-500.0,0.00016712,2]
[329280421,1718213443817,-500.0,0.00016712,2]
[329280422,1718213443832,-500.0,0.00016712,2]
[329280423,1718213443850,-500.0,0.00016712,2]
[329280424,1718213443867,-500.0,0.00016712,2]
[329280425,1718213443879,-500.0,0.00016712,2]
[329280426,1718213443893,-788.19,0.00016712,2]
[329280427,1718213443909,-500.0,0.00016712,2]
[329280428,1718213443924,-500.0,0.00016712,2]
[329280429,1718213443949,-500.0,0.00016712,2]
[329280430,1718213443974,-500.0,0.00016712,2]
[329280431,1718213443989,-698.9,0.00016712,2]
[329280432,1718213444010,-500.0,0.00016712,2]
[329280433,1718213444028,-785.12,0.00016712,2]
[329280435,1718213444052,-500.0,0.00016712,2]
[329280436,1718213444068,-500.0,0.00016712,2]
[329280437,1718213444105,-500.0,0.00016712,2]
[329280438,1718213444118,-500.0,0.00016712,2]
[329280439,1718213444152,-500.0,0.00016712,2]
[329280440,1718213444180,-500.0,0.00016712,2]
[329280441,1718213444201,-500.0,0.00016712,2]
[329280442,1718213444213,-500.0,0.00016712,4]
[329280443,1718213444227,-500.0,0.00016712,2]
[329280444,1718213444241,-500.0,0.00016712,2]
[329280445,1718213444257,-843.74,0.00016712,2]
[329280446,1718213444272,-500.0,0.00016712,2]
[329280447,1718213444295,-6106.68,0.00016712,2]
[329280448,1718213444307,-1141.32,0.00016712,2]
[329280449,1718213444329,-612.88,0.00016712,2]
[329280450,1718213444352,-250.0,0.00016712,2]
[329280451,1718213444363,-500.0,0.00016712,2]
[329280452,1718213444375,-1594.96,0.00016712,2]
[329280453,1718213444386,-500.0,0.00016712,2]
[329280454,1718213444397,-816.27,0.00016712,2]
[329280455,1718213444409,-500.0,0.00016712,2]
[329280456,1718213444421,-1013.29,0.00016712,2]
[329280457,1718213444432,-500.0,0.00016712,2]
[329280458,1718213444447,-500.0,0.00016712,2]
[329280459,1718213444458,-500.0,0.00016712,2]
[329280460,1718213444468,-500.0,0.00016712,2]
[329280461,1718213444482,-500.0,0.00016712,2]